fUSD/lending_fUSD_20260520
["ID","MTS","AMOUNT","RATE_DAILY","PERIOD"]
[422705930,1779279032000,-452.34929037,9.077e-05,2]
[422705928,1779279032000,-310.55827694,9.077e-05,2]
[422705931,1779279032000,-8104.37982775,9.077e-05,2]
[422705924,1779279032000,-16424.7776088,9.077e-05,2]
[422705923,1779279032000,-500.0,9.065e-05,2]
[422705925,1779279032000,-5580.17199117,9.077e-05,2]
[422705927,1779279032000,-1158.45634641,9.077e-05,2]
[422705933,1779279032000,-8619.67861961,9.077e-05,2]
[422705934,1779279032000,-993.21706718,9.077e-05,2]
[422705936,1779279032000,-494.97495455,9.077e-05,2]
[422705932,1779279032000,-141500.09544001,9.077e-05,2]
[422705935,1779279032000,-15482.94473483,9.077e-05,2]
[422705926,1779279032000,-3188.32140276,9.077e-05,2]
[422705917,1779279032000,-160.0,8.945e-05,2]
[422705919,1779279032000,-3292.0,8.947e-05,2]
[422705910,1779279032000,-500.0,8.791e-05,2]
[422705901,1779279032000,-500.0,8.791e-05,2]
[422705921,1779279032000,-174.44,8.986e-05,2]
[422705918,1779279032000,-215.20247212,8.945e-05,2]
[422705915,1779279032000,-151.77596545,8.892e-05,2]
[422705914,1779279032000,-150.0,8.815e-05,2]
[422705912,1779279032000,-52409.35654009,8.792e-05,2]
[422705913,1779279032000,-106875.21965375,8.792e-05,2]
[422705911,1779279032000,-1232437.87870616,8.792e-05,2]
[422705916,1779279032000,-208.63953863,8.945e-05,2]
[422705909,1779279032000,-500.0,8.791e-05,2]
[422705908,1779279032000,-500.0,8.791e-05,2]
[422705904,1779279032000,-289.77265056,8.791e-05,2]
[422705903,1779279032000,-500.0,8.791e-05,2]
[422705905,1779279032000,-444.24735593,8.791e-05,2]
[422705907,1779279032000,-500.0,8.791e-05,2]
[422705951,1779279037000,-220.31,9.084e-05,2]
[422705949,1779279037000,-2500.0,8.692e-05,2]
[422705950,1779279037000,-588331.24982302,9.077e-05,2]
[422705955,1779279037000,-166.66,9.252e-05,2]
[422705953,1779279037000,-1001.59004875,9.243e-05,2]
[422705952,1779279037000,-151.0,9.212e-05,2]
[422705956,1779279037000,-500.0,9.339e-05,2]
[422705954,1779279037000,-2000.0,9.247e-05,2]
[422705999,1779279038000,-339.70318,0.0001,2]
[422705997,1779279038000,-339.70318,0.0001,2]
[422705995,1779279038000,-163.44,0.0001,2]
[422706005,1779279038000,-2000.0,0.00010274,2]
[422705994,1779279038000,-442.69116867,0.0001,2]
[422705983,1779279038000,-151.0,9.876e-05,2]
[422705986,1779279038000,-388.49,9.879e-05,2]
[422705987,1779279038000,-1997.08,9.879e-05,2]
[422705984,1779279038000,-166.39631,9.879e-05,2]
[422705990,1779279038000,-1000.0,0.0001,2]
[422705985,1779279038000,-3743.35,9.879e-05,2]
[422705996,1779279038000,-339.70319,0.0001,2]
[422705998,1779279038000,-339.70319,0.0001,2]
[422706001,1779279038000,-339.70319,0.0001,2]
[422706004,1779279038000,-174.44,0.0001027,2]
[422706002,1779279038000,-427.67150434,0.0001,2]
[422706012,1779279038000,-200.0,0.00010959,2]
[422706003,1779279038000,-186.86,0.00010027,2]
[422706000,1779279038000,-339.70319,0.0001,2]
[422706008,1779279038000,-186.86,0.00010529,2]
[422706018,1779279038000,-186.86,0.0001103,2]
[422706007,1779279038000,-350.0,0.00010475,2]
[422706022,1779279038000,-18670.52944185,0.00011099,2]
[422706020,1779279038000,-18670.52944191,0.00011099,2]
[422706011,1779279038000,-1152.0,0.00010889,2]
[422705989,1779279038000,-823.0,9.899e-05,2]
[422706006,1779279038000,-433.0,0.00010289,2]
[422705991,1779279038000,-758.48683559,0.0001,2]
[422705975,1779279038000,-5000.0,9.738e-05,2]
[422705993,1779279038000,-300.0,0.0001,2]
[422706009,1779279038000,-3743.35,0.00010538,2]
[422705962,1779279038000,-5000.0,9.561e-05,2]
[422705961,1779279038000,-6598.12339915,9.561e-05,2]
[422705959,1779279038000,-166.66,9.522e-05,2]
[422705960,1779279038000,-585.74960775,9.548e-05,2]
[422705958,1779279038000,-321.0,9.522e-05,2]
[422705957,1779279038000,-255.0,9.353e-05,2]
[422705964,1779279038000,-5000.0,9.561e-05,2]
[422705974,1779279038000,-2878.23321295,9.734e-05,2]
[422705966,1779279038000,-5059.79459802,9.562e-05,2]
[422705965,1779279038000,-5000.0,9.561e-05,2]
[422705968,1779279038000,-5000.0,9.562e-05,2]
[422705963,1779279038000,-5000.0,9.561e-05,2]
[422705967,1779279038000,-5000.0,9.562e-05,2]
[422705971,1779279038000,-500.0,9.613e-05,2]
[422705970,1779279038000,-5000.0,9.562e-05,2]
[422705972,1779279038000,-2596.06312687,9.619e-05,2]
[422705973,1779279038000,-178.96984945,9.714e-05,2]
[422705969,1779279038000,-5000.0,9.562e-05,2]
[422705977,1779279038000,-5000.0,9.738e-05,2]
[422705976,1779279038000,-5000.0,9.738e-05,2]
[422705979,1779279038000,-5000.0,9.738e-05,2]
[422705981,1779279038000,-179.0,9.796e-05,2]
[422705980,1779279038000,-320.78,9.783e-05,2]
[422705978,1779279038000,-5000.0,9.738e-05,2]
[422705982,1779279038000,-1719.0,9.841e-05,2]
[422705992,1779279038000,-201.05813237,0.0001,2]
[422705988,1779279038000,-88633.97,9.879e-05,2]
[422706010,1779279038000,-320.78,0.0001087,2]
[422706098,1779279038000,-522.0,0.0001331,2]
[422706013,1779279038000,-200.0,0.00010959,2]
[422706076,1779279038000,-218.01068577,0.00011504,2]
[422706077,1779279038000,-174.44,0.00011554,2]
[422706078,1779279038000,-329.658859,0.00011814,2]
[422706080,1779279038000,-320.78,0.00011957,2]
[422706079,1779279038000,-432.532792,0.00011814,2]
[422706072,1779279038000,-150.0,0.00011332,2]
[422706082,1779279038000,-88633.97,0.00011975,2]
[422706083,1779279038000,-184.0,0.00011977,2]
[422706081,1779279038000,-388.49,0.00011975,2]
[422706084,1779279038000,-53208.04,0.00012055,2]
[422706085,1779279038000,-13772.55687581,0.00012096,2]
[422706086,1779279038000,-18670.52944185,0.00012151,2]
[422706075,1779279038000,-18670.52944185,0.00011464,2]
[422706091,1779279038000,-13772.55687581,0.00012797,2]
[422706094,1779279038000,-151.0,0.00013151,2]
[422706087,1779279038000,-1575.34,0.00012329,2]
[422706095,1779279038000,-151.0,0.00013151,2]
[422706096,1779279038000,-151.0,0.00013151,2]
[422706093,1779279038000,-320.78,0.00013044,2]
[422706089,1779279038000,-169.31,0.00012517,2]
[422706088,1779279038000,-2000.0,0.00012329,2]
[422706097,1779279038000,-2312.0,0.0001331,2]
[422706099,1779279038000,-255.735357,0.00013357,2]
[422706100,1779279038000,-217.889992,0.00013357,2]
[422706014,1779279038000,-150.0,0.00010959,2]
[422706101,1779279038000,-195.497896,0.00013357,2]
[422706090,1779279038000,-169.31,0.00012517,2]
[422706074,1779279038000,-13772.55687581,0.00011396,2]
[422706092,1779279038000,-18670.52944185,0.00012838,2]
[422706071,1779279038000,-1271.0,0.00011332,2]
[422706016,1779279038000,-492.36,0.00011,2]
[422706026,1779279038000,-18670.52944185,0.00011099,2]
[422706073,1779279038000,-1224.0,0.00011332,2]
[422706028,1779279038000,-13772.55687585,0.00011099,2]
[422706024,1779279038000,-18670.52944185,0.00011099,2]
[422706035,1779279038000,-19999.99,0.00011281,2]
[422706030,1779279038000,-13772.55687581,0.00011099,2]
[422706031,1779279038000,-13772.55687581,0.00011099,2]
[422706037,1779279038000,-9999.99,0.00011281,2]
[422706039,1779279038000,-785.01,0.00011281,2]
[422706043,1779279038000,-150.0,0.00011314,2]
[422706045,1779279038000,-736.0,0.00011317,2]
[422706047,1779279038000,-150.0,0.00011332,2]
[422706041,1779279038000,-2000.0,0.00011301,2]
[422706033,1779279038000,-13772.55687581,0.00011099,2]
[422706051,1779279038000,-161.862,0.00011332,2]
[422706069,1779279038000,-625.0,0.00011332,2]
[422706067,1779279038000,-3548.151,0.00011332,2]
[422706070,1779279038000,-927.0,0.00011332,2]
[422706059,1779279038000,-194.674,0.00011332,2]
[422706049,1779279038000,-150.0,0.00011332,2]
[422706065,1779279038000,-150.0,0.00011332,2]
[422706068,1779279038000,-1374.906,0.00011332,2]
[422706061,1779279038000,-150.0,0.00011332,2]
[422706053,1779279038000,-244.325,0.00011332,2]
[422706057,1779279038000,-150.0,0.00011332,2]
[422706055,1779279038000,-150.076,0.00011332,2]
[422706063,1779279038000,-150.0,0.00011332,2]
[422706146,1779279039000,-151.0,0.00013502,2]
[422706141,1779279039000,-151.0,0.00013502,2]
[422706133,1779279039000,-1235.18214925,0.00013502,2]
[422706145,1779279039000,-151.0,0.00013502,2]
[422706142,1779279039000,-151.0,0.00013502,2]
[422706143,1779279039000,-151.0,0.00013502,2]
[422706140,1779279039000,-151.0,0.00013502,2]
[422706144,1779279039000,-151.0,0.00013502,2]
[422706139,1779279039000,-151.0,0.00013502,2]
[422706137,1779279039000,-151.0,0.00013502,2]
[422706135,1779279039000,-151.0,0.00013502,2]
[422706136,1779279039000,-151.0,0.00013502,2]
[422706138,1779279039000,-151.0,0.00013502,2]
[422706147,1779279039000,-151.0,0.00013502,2]
[422706159,1779279039000,-151.0,0.00013502,2]
[422706153,1779279039000,-151.0,0.00013502,2]
[422706152,1779279039000,-151.0,0.00013502,2]
[422706149,1779279039000,-151.0,0.00013502,2]
[422706150,1779279039000,-151.0,0.00013502,2]
[422706151,1779279039000,-151.0,0.00013502,2]
[422706156,1779279039000,-151.0,0.00013502,2]
[422706155,1779279039000,-151.0,0.00013502,2]
[422706154,1779279039000,-151.0,0.00013502,2]
[422706157,1779279039000,-151.0,0.00013502,2]
[422706158,1779279039000,-151.0,0.00013502,2]
[422706169,1779279039000,-151.0,0.00013502,2]
[422706170,1779279039000,-151.0,0.00013502,2]
[422706134,1779279039000,-1798.80895522,0.00013502,2]
[422706148,1779279039000,-151.0,0.00013502,2]
[422706129,1779279039000,-500.0,0.00013502,2]
[422706102,1779279039000,-201.397092,0.00013357,2]
[422706125,1779279039000,-500.0,0.00013502,2]
[422706163,1779279039000,-151.0,0.00013502,2]
[422706107,1779279039000,-13772.55687581,0.00013498,2]
[422706103,1779279039000,-2314.0,0.000134,2]
[422706104,1779279039000,-1277.0,0.000134,2]
[422706106,1779279039000,-150.0,0.00013488,2]
[422706105,1779279039000,-163.0,0.000134,2]
[422706109,1779279039000,-200.0,0.00013502,2]
[422706119,1779279039000,-500.0,0.00013502,2]
[422706108,1779279039000,-174.61919141,0.00013502,2]
[422706113,1779279039000,-500.0,0.00013502,2]
[422706111,1779279039000,-623.58710448,0.00013502,2]
[422706110,1779279039000,-181.08010149,0.00013502,2]
[422706115,1779279039000,-500.0,0.00013502,2]
[422706127,1779279039000,-500.0,0.00013502,2]
[422706112,1779279039000,-500.0,0.00013502,2]
[422706118,1779279039000,-500.0,0.00013502,2]
[422706117,1779279039000,-200.0,0.00013502,2]
[422706114,1779279039000,-500.0,0.00013502,2]
[422706120,1779279039000,-500.0,0.00013502,2]
[422706122,1779279039000,-500.0,0.00013502,2]
[422706131,1779279039000,-500.0,0.00013502,2]
[422706123,1779279039000,-192.36861835,0.00013502,2]
[422706132,1779279039000,-578.20924308,0.00013502,2]
[422706121,1779279039000,-500.0,0.00013502,2]
[422706124,1779279039000,-500.0,0.00013502,2]
[422706130,1779279039000,-287.00931929,0.00013502,2]
[422706128,1779279039000,-500.0,0.00013502,2]
[422706126,1779279039000,-181.08010149,0.00013502,2]
[422706116,1779279039000,-500.0,0.00013502,2]
[422706160,1779279039000,-151.0,0.00013502,2]
[422706211,1779279039000,-300.8861357,0.00013698,2]
[422706161,1779279039000,-151.0,0.00013502,2]
[422706205,1779279039000,-500.0,0.00013698,2]
[422706206,1779279039000,-500.0,0.00013698,2]
[422706197,1779279039000,-3664.8632582,0.00013671,2]
[422706201,1779279039000,-15000.0,0.00013676,2]
[422706204,1779279039000,-500.0,0.00013698,2]
[422706207,1779279039000,-500.0,0.00013698,2]
[422706200,1779279039000,-212.633177,0.00013671,2]
[422706202,1779279039000,-596.83922343,0.00013698,2]
[422706199,1779279039000,-168557.4676831,0.00013671,2]
[422706208,1779279039000,-500.0,0.00013698,2]
[422706203,1779279039000,-500.0,0.00013698,2]
[422706210,1779279039000,-500.0,0.00013698,2]
[422706220,1779279039000,-500.0,0.00013698,2]
[422706198,1779279039000,-4268.0921601,0.00013671,2]
[422706222,1779279039000,-500.0,0.00013698,2]
[422706221,1779279039000,-500.0,0.00013698,2]
[422706213,1779279039000,-500.0,0.00013698,2]
[422706215,1779279039000,-500.0,0.00013698,2]
[422706217,1779279039000,-500.0,0.00013698,2]
[422706219,1779279039000,-500.0,0.00013698,2]
[422706216,1779279039000,-500.0,0.00013698,2]
[422706218,1779279039000,-500.0,0.00013698,2]
[422706223,1779279039000,-500.0,0.00013698,2]
[422706225,1779279039000,-500.0,0.00013698,2]
[422706227,1779279039000,-500.0,0.00013698,2]
[422706226,1779279039000,-500.0,0.00013698,2]
[422706224,1779279039000,-601.7594973,0.00013698,2]
[422706167,1779279039000,-151.0,0.00013502,2]
[422706209,1779279039000,-395.3998277,0.00013698,2]
[422706195,1779279039000,-151.0,0.00013612,2]
[422706214,1779279039000,-264.34442925,0.00013698,2]
[422706191,1779279039000,-450.44166897,0.00013502,2]
[422706192,1779279039000,-151.0,0.00013557,2]
[422706164,1779279039000,-151.0,0.00013502,2]
[422706162,1779279039000,-151.0,0.00013502,2]
[422706165,1779279039000,-181.08010149,0.00013502,2]
[422706168,1779279039000,-151.0,0.00013502,2]
[422706174,1779279039000,-152.0,0.00013502,2]
[422706173,1779279039000,-152.0,0.00013502,2]
[422706172,1779279039000,-279.9045709,0.00013502,2]
[422706183,1779279039000,-152.0,0.00013502,2]
[422706178,1779279039000,-743.50770149,0.00013502,2]
[422706176,1779279039000,-152.0,0.00013502,2]
[422706175,1779279039000,-152.0,0.00013502,2]
[422706182,1779279039000,-152.0,0.00013502,2]
[422706171,1779279039000,-151.0,0.00013502,2]
[422706179,1779279039000,-152.0,0.00013502,2]
[422706196,1779279039000,-151.0,0.00013667,2]
[422706177,1779279039000,-152.0,0.00013502,2]
[422706186,1779279039000,-152.0,0.00013502,2]
[422706194,1779279039000,-5166.0969111,0.00013594,2]
[422706188,1779279039000,-152.0,0.00013502,2]
[422706193,1779279039000,-38068.7883321,0.00013594,2]
[422706190,1779279039000,-151.0,0.00013502,2]
[422706166,1779279039000,-151.0,0.00013502,2]
[422706187,1779279039000,-152.0,0.00013502,2]
[422706184,1779279039000,-152.0,0.00013502,2]
[422706185,1779279039000,-152.0,0.00013502,2]
[422706180,1779279039000,-181.08010149,0.00013502,2]
[422706181,1779279039000,-152.0,0.00013502,2]
[422706189,1779279039000,-152.0,0.00013502,2]
[422706246,1779279040000,-151.0,0.00013942,2]
[422706250,1779279040000,-300.0,0.00013966,2]
[422706253,1779279040000,-151.0,0.00013997,2]
[422706254,1779279040000,-361.85287673,0.00014,2]
[422706261,1779279040000,-181.08010149,0.0001405,2]
[422706252,1779279040000,-350.0,0.0001398,2]
[422706259,1779279040000,-163.0,0.0001404,2]
[422706257,1779279040000,-409.0,0.00014014,2]
[422706255,1779279040000,-250.0,0.00014,2]
[422706258,1779279040000,-508.0,0.0001402,2]
[422706260,1779279040000,-1587.0,0.0001404,2]
[422706256,1779279040000,-15000.0,0.00014001,4]
[422706262,1779279040000,-211.64480078,0.0001405,2]
[422706269,1779279040000,-376.04885881,0.0001405,2]
[422706272,1779279040000,-151.0,0.00014052,2]
[422706263,1779279040000,-187.78006525,0.0001405,2]
[422706271,1779279040000,-240.9462934,0.0001405,2]
[422706273,1779279040000,-198.0,0.00014065,2]
[422706251,1779279040000,-166.66,0.00013973,2]
[422706270,1779279040000,-771.01748645,0.0001405,2]
[422706229,1779279040000,-500.0,0.00013698,2]
[422706245,1779279040000,-15000.0,0.00013905,4]
[422706265,1779279040000,-187.78006525,0.0001405,2]
[422706228,1779279040000,-500.0,0.00013698,2]
[422706230,1779279040000,-512.41423198,0.00013698,2]
[422706232,1779279040000,-1196.16,0.00013699,2]
[422706233,1779279040000,-200.0,0.00013699,2]
[422706234,1779279040000,-166.66,0.00013699,2]
[422706231,1779279040000,-459.82,0.00013698,2]
[422706235,1779279040000,-3547.9548837,0.00013714,2]
[422706242,1779279040000,-166.66,0.00013836,2]
[422706236,1779279040000,-2312.0,0.0001372,2]
[422706237,1779279040000,-2314.0,0.0001372,2]
[422706240,1779279040000,-151.0,0.00013777,2]
[422706249,1779279040000,-8462.94704734,0.00013966,4]
[422706248,1779279040000,-442.0,0.00013958,2]
[422706239,1779279040000,-11844.4937519,0.00013756,2]
[422706247,1779279040000,-163.0,0.0001395,2]
[422706244,1779279040000,-151.0,0.00013887,2]
[422706243,1779279040000,-15000.0,0.00013859,4]
[422706238,1779279040000,-151.0,0.00013722,2]
[422706264,1779279040000,-200.0,0.0001405,2]
[422706241,1779279040000,-151.0,0.00013832,2]
[422706266,1779279040000,-1280.88388878,0.0001405,2]
[422706294,1779279040000,-500.0,0.00014213,2]
[422706293,1779279040000,-500.0,0.00014213,2]
[422706298,1779279040000,-500.0,0.00014213,2]
[422706301,1779279040000,-500.0,0.00014213,2]
[422706300,1779279040000,-500.0,0.00014213,2]
[422706302,1779279040000,-500.0,0.00014213,2]
[422706309,1779279040000,-7464.00433913,0.0001425,2]
[422706305,1779279040000,-500.0,0.00014213,2]
[422706295,1779279040000,-500.0,0.00014213,2]
[422706307,1779279040000,-166.66,0.00014247,2]
[422706299,1779279040000,-500.0,0.00014213,2]
[422706304,1779279040000,-500.0,0.00014213,2]
[422706306,1779279040000,-500.0,0.00014213,2]
[422706311,1779279040000,-221.34558433,0.00013502,2]
[422706312,1779279040000,-422.86032271,0.00013526,2]
[422706310,1779279040000,-544.6995,0.0001425,2]
[422706313,1779279040000,-4749.8,0.00013526,2]
[422706314,1779279040000,-933.45448901,0.00013526,2]
[422706303,1779279040000,-500.0,0.00014213,2]
[422706292,1779279040000,-500.0,0.00014213,2]
[422706308,1779279040000,-34185.34111426,0.0001425,2]
[422706288,1779279040000,-500.0,0.00014213,2]
[422706296,1779279040000,-500.0,0.00014213,2]
[422706267,1779279040000,-1865.36488657,0.0001405,2]
[422706275,1779279040000,-166.66,0.0001411,2]
[422706285,1779279040000,-500.0,0.00014213,2]
[422706277,1779279040000,-442.0,0.00014192,2]
[422706274,1779279040000,-151.0,0.00014107,2]
[422706276,1779279040000,-159.17981738,0.00014162,2]
[422706282,1779279040000,-990.0,0.00014213,2]
[422706283,1779279040000,-500.0,0.00014213,2]
[422706281,1779279040000,-500.0,0.00014213,2]
[422706268,1779279040000,-187.78006525,0.0001405,2]
[422706278,1779279040000,-13772.55687581,0.00014199,2]
[422706284,1779279040000,-500.0,0.00014213,2]
[422706279,1779279040000,-500.0,0.00014213,2]
[422706280,1779279040000,-500.0,0.00014213,2]
[422706289,1779279040000,-500.0,0.00014213,2]
[422706290,1779279040000,-500.0,0.00014213,2]
[422706291,1779279040000,-500.0,0.00014213,2]
[422706286,1779279040000,-500.0,0.00014213,2]
[422706287,1779279040000,-500.0,0.00014213,2]
[422706297,1779279040000,-500.0,0.00014213,2]
[422706327,1779279043000,-3999.20553044,0.00013526,2]
[422706328,1779279043000,-900.05641542,0.00013526,2]
[422706326,1779279043000,-427.67150432,0.00011939,2]
[422706329,1779279043000,-3304.19561816,0.00013526,2]
[422706331,1779279043000,-639.05742163,0.0001425,2]
[422706330,1779279043000,-4360.95706611,0.00013526,2]
[422706352,1779279046000,-3748.33223496,0.0001425,2]
[422706351,1779279046000,-6917.19039783,0.0001425,2]
[422706350,1779279046000,-8262.33146667,0.00014213,2]
[422706349,1779279046000,-8266.14531832,0.00014213,2]
[422706348,1779279046000,-2142.05265686,0.00014213,2]
[422706448,1779279243000,2024.36421742,2.2e-05,2]
[422706449,1779279359000,176.82245081,0.0001,30]
[422706464,1779280136000,4000.0,0.00027,120]
[422706465,1779280141000,1000.0,0.00028765,120]
[422706471,1779280216000,2500.0,0.00028,120]
[422706472,1779280226000,2500.0,0.00028,120]
[422706512,1779280232000,-500.0,9.559e-05,2]
[422706505,1779280232000,-8299.012,8.692e-05,2]
[422706511,1779280232000,-150.0,9.559e-05,2]
[422706514,1779280232000,-14797.12,9.56e-05,2]
[422706509,1779280232000,-150.0,9.386e-05,2]
[422706510,1779280232000,-1200.0,9.559e-05,2]
[422706507,1779280232000,-160.0,8.836e-05,2]
[422706508,1779280232000,-150.0,9.312e-05,2]
[422706504,1779280232000,-423.13459805,8.691e-05,2]
[422706503,1779280232000,-167.00671164,8.691e-05,2]
[422706502,1779280232000,-300.0,8.69e-05,2]
[422706513,1779280232000,-999.99,9.56e-05,2]
[422706501,1779280232000,-300.0,8.69e-05,2]
[422706506,1779280232000,-215.20247212,8.836e-05,2]
[422706500,1779280232000,-1200.0,8.69e-05,2]
[422706524,1779280232000,-1254.41808677,0.00010511,2]
[422706515,1779280232000,-9999.99,9.56e-05,2]
[422706516,1779280232000,-2500.0,0.00010411,2]
[422706530,1779280232000,-4999.99,0.00010511,2]
[422706529,1779280232000,-499.99,0.00010511,2]
[422706528,1779280232000,-1609.78,0.00010511,2]
[422706525,1779280232000,-125584.7251903,0.00010511,2]
[422706527,1779280232000,-150.0,0.00010511,2]
[422706526,1779280232000,-150.0,0.00010511,2]
[422706531,1779280232000,-210.0,0.00010515,2]
[422706520,1779280232000,-19894.0795711,0.00010475,2]
[422706522,1779280232000,-6328.57,0.00010475,2]
[422706519,1779280232000,-105.9104289,0.00010475,2]
[422706521,1779280232000,-9999.99,0.00010475,2]
[422706518,1779280232000,-24999.99,0.00010475,2]
[422706523,1779280232000,-10292.44862024,0.00010511,2]
[422706517,1779280232000,-150.99,0.00010475,2]
[422706572,1779280233000,-150.0,0.00013595,2]
[422706571,1779280233000,-150.0,0.00013583,2]
[422706570,1779280233000,-6543.6270634,0.00013555,2]
[422706569,1779280233000,-150.0,0.00013551,2]
[422706568,1779280233000,-150.0,0.0001352,2]
[422706566,1779280233000,-150.0,0.00013488,2]
[422706562,1779280233000,-151.31876581,0.00013488,2]
[422706564,1779280233000,-150.0,0.00013488,2]
[422706563,1779280233000,-150.0,0.00013488,2]
[422706574,1779280233000,-150.0,0.00013624,2]
[422706567,1779280233000,-150.0,0.00013488,2]
[422706575,1779280233000,-150.0,0.00013624,2]
[422706581,1779280233000,-150.0,0.00013679,2]
[422706578,1779280233000,-150.0,0.00013654,2]
[422706577,1779280233000,-2000.0,0.0001365,2]
[422706573,1779280233000,-150.0,0.00013615,2]
[422706579,1779280233000,-150.51,0.00013658,2]
[422706582,1779280233000,-200.0,0.00013693,2]
[422706580,1779280233000,-150.0,0.00013675,2]
[422706565,1779280233000,-150.0,0.00013488,2]
[422706584,1779280233000,-505.64447127,0.00013698,2]
[422706591,1779280233000,-1196.16,0.00013699,2]
[422706592,1779280233000,-200.0,0.00013699,2]
[422706583,1779280233000,-500.0,0.00013698,2]
[422706590,1779280233000,-166.66,0.00013699,2]
[422706593,1779280233000,-150.0,0.00013702,2]
[422706576,1779280233000,-150.0,0.00013647,2]
[422706560,1779280233000,-150.0,0.00013488,2]
[422706550,1779280233000,-500.0,0.00012248,2]
[422706557,1779280233000,-163.0,0.000134,2]
[422706536,1779280233000,-347.42611052,0.00011099,2]
[422706534,1779280233000,-200.84307543,0.00011099,2]
[422706535,1779280233000,-200.0,0.00011099,2]
[422706533,1779280233000,-500.0,0.00010958,2]
[422706532,1779280233000,-500.0,0.00010884,2]
[422706537,1779280233000,-250.0,0.00011484,2]
[422706540,1779280233000,-1271.0,0.00011687,2]
[422706539,1779280233000,-150.0,0.0001167,2]
[422706541,1779280233000,-500.0,0.000117,2]
[422706542,1779280233000,-1000.0,0.000117,2]
[422706538,1779280233000,-160.4,0.0001167,2]
[422706543,1779280233000,-315.0,0.000117,2]
[422706561,1779280233000,-150.0,0.00013488,2]
[422706547,1779280233000,-500.0,0.00011974,2]
[422706548,1779280233000,-2000.0,0.00012133,2]
[422706546,1779280233000,-6543.62706341,0.00011874,2]
[422706545,1779280233000,-308.0,0.000117,2]
[422706549,1779280233000,-6543.6270634,0.0001221,2]
[422706559,1779280233000,-150.0,0.00013488,2]
[422706551,1779280233000,-6543.6270634,0.00012546,2]
[422706553,1779280233000,-6543.6270634,0.00012883,2]
[422706552,1779280233000,-8573.6074027,0.00012726,2]
[422706554,1779280233000,-500.0,0.00013185,2]
[422706555,1779280233000,-6543.6270634,0.00013219,2]
[422706556,1779280233000,-2351.51053283,0.00013375,2]
[422706558,1779280233000,-150.0,0.00013488,2]
[422706544,1779280233000,-200.0,0.000117,2]
[422706585,1779280233000,-500.0,0.00013698,2]
[422706586,1779280233000,-500.0,0.00013698,2]
[422706587,1779280233000,-500.0,0.00013698,2]
[422706622,1779280233000,-150.0,0.00013934,2]
[422706623,1779280233000,-186.248569,0.00013952,2]
[422706626,1779280233000,-154.981,0.00013958,2]
[422706625,1779280233000,-2144.018,0.00013958,2]
[422706624,1779280233000,-186.601559,0.00013952,2]
[422706630,1779280233000,-150.0,0.00013987,2]
[422706628,1779280233000,-150.0,0.00013966,2]
[422706629,1779280233000,-166.66,0.00013973,2]
[422706627,1779280233000,-166.67,0.00013965,2]
[422706632,1779280233000,-150.0,0.00013998,2]
[422706634,1779280233000,-5326.10386395,0.00014001,2]
[422706638,1779280233000,-150.0,0.00014033,2]
[422706621,1779280233000,-6673.092835,0.00013921,2]
[422706641,1779280233000,-2314.0,0.0001404,2]
[422706636,1779280233000,-150.0,0.0001403,2]
[422706637,1779280233000,-150.0,0.00014033,2]
[422706640,1779280233000,-163.0,0.0001404,2]
[422706642,1779280233000,-2314.0,0.0001404,2]
[422706633,1779280233000,-250.0,0.00014,2]
[422706643,1779280233000,-150.0,0.0001405,2]
[422706645,1779280233000,-557.0,0.00014063,2]